bitfinex-derivatives/quotes_SOLF0:USTF0_20250730
["timestamp","ask_amount","ask_price","bid_price","bid_amount"]
[1753859255015,3.09,182.59,182.55,2.98]
[1753859255515,3.09,182.58,182.55,2.98]
[1753859256217,5.4775,182.58,182.55,2.98]
[1753859256412,3.09,182.57,182.53,2.98]
[1753859256612,3.09,182.57,182.54,3.42148516]
[1753859256915,8.568,182.57,182.53,5.4788]
[1753859257212,3.09,182.55,182.5,2.98]
[1753859257405,3.09,182.55,182.51,6.40307904]
[1753859257605,3.09,182.54,182.52,3.42307904]
[1753859257806,3.09,182.54,182.51,2.98]
[1753859258010,3.09,182.54,182.52,3.42569425]
[1753859258222,3.09,182.54,182.49,2.98]
[1753859258516,3.09,182.54,182.5,6.40700489]
[1753859258814,3.09,182.54,182.51,3.42700489]
[1753859259017,8.5688,182.54,182.52,3.42700489]
[1753859259212,3.09,182.53,182.5,2.98]
[1753859259515,3.09,182.53,182.51,6.40716405]
[1753859259814,3.09,182.53,182.52,3.42716405]
[1753859260520,2.68412574,182.58,182.53,2.98]
[1753859260712,3.09,182.57,182.51,2.98]
[1753859260912,3.09,182.57,182.52,6.40797338]
[1753859261116,5.4782,182.56,182.52,2.98]
[1753859261316,3.09,182.55,182.5,2.98]
[1753859261615,3.09,182.55,182.51,3.42884691]
[1753859261809,3.09,182.55,182.52,3.42884691]
[1753859262009,3.09,182.53,182.5,8.4599]
[1753859262313,3.09,182.53,182.51,3.42872014]
[1753859262516,3.09,182.53,182.5,8.4599]
[1753859262517,8.569,182.53,182.52,3.42872014]
[1753859262716,3.09,182.53,182.48,2.98]
[1753859262916,3.09,182.53,182.49,3.4301852]
[1753859263116,3.09,182.53,182.5,3.4301852]
[1753859263314,3.09,182.51,182.45,2.98]
[1753859263514,2.68412574,182.5,182.46,3.43110314]
[1753859263823,3.09,182.49,182.48,2.98]
[1753859264021,3.09,182.49,182.48,6.41110314]
[1753859264411,2.68412574,182.54,182.49,2.98]
[1753859264721,3.09,182.53,182.47,2.98]
[1753859264915,3.09,182.52,182.51,2.98]
[1753859265111,3.09,182.54,182.52,2.98]
[1753859266321,3.09,182.54,182.51,5.4796]
[1753859266721,3.09,182.54,182.51,8.4596]
[1753859266922,3.09,182.53,182.51,2.98]
[1753859267518,3.09,182.52,182.51,8.4596]
[1753859267718,3.09,182.52,182.51,11.88694638]
[1753859268324,3.09,182.52,182.51,6.40734638]
[1753859268928,3.09,182.52,182.51,11.88694638]
[1753859269821,5.4786,182.55,182.51,3.42734638]
[1753859270022,3.09,182.53,182.52,2.98]
[1753859270928,2.68412574,182.57,182.52,2.98]
[1753859271128,3.09,182.53,182.51,5.4794]
[1753859271322,3.09,182.53,182.52,5.4793]
[1753859271828,3.09,182.53,182.52,8.6093]
[1753859272128,3.09,182.53,182.52,3.13]
[1753859273027,3.09,182.53,182.51,5.4795]
[1753859273228,3.09,182.53,182.5,3.13]
[1753859273428,3.09,182.53,182.51,3.42732942]
[1753859273623,3.09,182.53,182.5,3.13]
[1753859273823,3.09,182.53,182.51,3.42757106]
[1753859274122,3.09,182.53,182.5,3.13]
[1753859274324,3.09,182.53,182.51,3.4274019]
[1753859274525,3.09,182.53,182.5,8.6099]
[1753859274829,3.09,182.53,182.51,3.4274019]
[1753859275024,8.5691,182.53,182.48,5.81412574]
[1753859275225,3.09,182.56,182.5,3.13]
[1753859276333,5.4787,182.54,182.5,5.4797]
[1753859276630,3.09,182.52,182.51,3.13]
[1753859276822,3.09,182.52,182.51,12.0376776]
[1753859277027,3.09,182.54,182.52,3.13]
[1753859277428,3.09,182.54,182.53,3.13]
[1753859279732,3.09,182.54,182.51,8.6095]
[1753859279928,3.09,182.54,182.52,6.55828568]
[1753859280234,3.09,182.54,182.52,3.13]
[1753859281536,3.09,182.53,182.48,3.13]
[1753859281728,3.09,182.53,182.49,3.42886785]
[1753859281927,5.4796,182.51,182.5,3.42886785]
[1753859282123,8.5696,182.51,182.5,3.42886785]
[1753859282328,3.09,182.51,182.5,3.42886785]
[1753859284235,3.09,182.51,182.5,3.13]
[1753859284442,3.09,182.55,182.5,6.56147223]
[1753859284734,8.5686,182.55,182.52,3.13]
[1753859284934,5.4786,182.55,182.52,3.13]
[1753859285230,3.09,182.53,182.52,3.13]
[1753859285829,3.09,182.53,182.51,5.4795]
[1753859286031,3.09,182.53,182.5,3.13]
[1753859286229,3.09,182.53,182.51,3.43220737]
[1753859286430,3.09,182.51,182.49,3.13]
[1753859286631,2.68412574,182.56,182.5,3.43231455]
[1753859286831,2.68412574,182.56,182.49,8.6099]
[1753859286832,2.68412574,182.56,182.51,3.43231455]
[1753859287031,5.4792,182.53,182.49,8.6099]
[1753859287231,3.09,182.52,182.5,3.43353737]
[1753859287430,3.09,182.52,182.51,3.43353737]
[1753859287738,8.5693,182.52,182.51,3.43353737]
[1753859287932,3.09,182.52,182.51,3.43353737]
[1753859288439,3.09,182.57,182.52,3.13]
[1753859288735,3.09,182.55,182.5,3.13]
[1753859288941,3.09,182.55,182.51,3.43405165]
[1753859289136,3.09,182.55,182.52,3.43509418]
[1753859289336,3.09,182.55,182.5,3.13]
[1753859289538,3.09,182.55,182.51,3.43514807]
[1753859289731,3.09,182.55,182.52,3.43514807]
[1753859289934,3.09,182.55,182.5,3.13]
[1753859290138,3.09,182.52,182.51,6.56491526]
[1753859291137,3.09,182.52,182.51,3.43491526]
[1753859292735,5.4788,182.54,182.51,6.56491526]
[1753859292933,3.09,182.53,182.52,6.56491526]
[1753859294036,3.09,182.53,182.52,3.43491526]
[1753859294634,8.569,182.53,182.52,3.43491526]
[1753859298136,3.09,182.53,182.52,3.43491526]
[1753859298344,3.09,182.53,182.52,6.56491526]
[1753859301436,3.09,182.53,182.52,3.43491526]
[1753859301945,3.09,182.53,182.52,6.52491526]
[1753859303646,3.09,182.53,182.52,12.00421526]
[1753859303943,3.0,182.54,182.53,3.09]
[1753859304146,3.0,182.54,182.53,12.00391526]
[1753859305047,3.0,182.56,182.53,12.00391526]
[1753859305242,7.80322998,182.55,182.54,6.52491526]
[1753859306141,7.80322998,182.55,182.54,12.00361526]
[1753859306142,4.80322998,182.55,182.54,12.00361526]
[1753859306640,3.0,182.58,182.55,3.09]
[1753859306844,8.69915952,182.57,182.56,3.43491526]
[1753859307046,8.69915952,182.57,182.56,6.52491526]
[1753859307242,3.89671898,182.57,182.56,8.5681]
[1753859307445,3.0,182.58,182.57,3.09]
[1753859307839,6.89603561,182.58,182.57,3.09]
[1753859308046,3.0,182.58,182.57,6.52885101]
[1753859309148,3.0,182.58,182.57,3.43885101]
[1753859311153,3.0,182.58,182.57,6.52885101]
[1753859313947,3.0,182.58,182.57,3.43885101]
[1753859314352,8.4775,182.58,182.57,3.43885101]
[1753859314647,3.0,182.58,182.57,3.43885101]
[1753859315250,3.0,182.58,182.57,6.52885101]
[1753859319350,8.4775,182.58,182.57,3.43885101]
[1753859320958,10.18903907,182.58,182.57,3.43885101]
[1753859322158,5.4784,182.55,182.53,4.80153907]
[1753859322357,5.4784,182.55,182.54,3.42756687]
[1753859322757,7.18993907,182.55,182.54,3.42756687]
[1753859322962,10.18993907,182.55,182.54,3.42756687]
[1753859323258,3.0,182.52,182.51,3.09]
[1753859323458,3.0,182.52,182.51,8.23076799]
[1753859323659,3.0,182.52,182.51,6.51922892]
[1753859323966,3.0,182.52,182.51,8.23076799]
[1753859324759,3.0,182.52,182.51,6.51922892]
[1753859325861,3.0,182.56,182.52,3.09]
[1753859326057,3.0,182.55,182.54,3.09]
[1753859326262,2.6757447,182.59,182.54,3.42922892]
[1753859326458,2.6757447,182.59,182.51,2.6757447]
[1753859326459,3.0,182.56,182.55,3.09]
[1753859327562,3.0,182.56,182.51,2.6757447]
[1753859327861,3.0,182.56,182.54,3.09]
[1753859328565,3.0,182.56,182.55,3.43047507]
[1753859328865,8.4781,182.56,182.55,3.43047507]
[1753859329159,3.0,182.56,182.55,3.43047507]
[1753859329561,3.0,182.56,182.55,6.52047507]
[1753859330758,3.0,182.56,182.55,3.43047507]
[1753859331468,8.4781,182.56,182.55,3.43047507]
[1753859334272,8.4781,182.56,182.55,6.41047507]
[1753859334870,3.0,182.56,182.55,6.41047507]
[1753859335877,8.4781,182.56,182.55,6.41047507]
[1753859336180,8.4781,182.56,182.55,3.43047507]
[1753859340679,2.99,182.52,182.51,2.98]
[1753859340874,2.99,182.52,182.51,6.41396133]
[1753859341277,2.99,182.54,182.51,3.43396133]
[1753859341582,2.99,182.53,182.52,3.43396133]
[1753859342476,8.469,182.53,182.52,3.43396133]
[1753859342682,2.6757447,182.53,182.47,2.98]
[1753859342985,5.4813,182.46,182.42,8.4623]
[1753859343277,2.99,182.44,182.42,2.98]
[1753859343682,2.99,182.44,182.39,2.98]
[1753859344081,2.99,182.43,182.4,2.98]
[1753859344794,2.99,182.43,182.4,8.4626]
[1753859344984,2.99,182.43,182.38,2.6757447]
[1753859344985,2.99,182.43,182.41,2.98]
[1753859345174,8.1571447,182.45,182.41,2.98]
[1753859345378,2.99,182.44,182.41,2.98]
[1753859345882,5.4811,182.46,182.41,2.98]
[1753859346185,2.99,182.46,182.43,2.98]
[1753859346784,2.99,182.46,182.43,8.462]
[1753859346975,2.99,182.46,182.43,5.482]
[1753859347178,2.99,182.46,182.45,2.98]
[1753859348181,5.4811,182.46,182.43,2.98]
[1753859348379,5.4811,182.46,182.34,2.6757447]
[1753859348380,2.99,182.45,182.41,2.98]
[1753859348580,2.99,182.43,182.39,2.98]
[1753859348888,2.99,182.43,182.37,2.98]
[1753859349385,5.4822,182.43,182.39,5.4832]
[1753859349586,2.99,182.42,182.39,5.4832]
[1753859349884,8.4723,182.42,182.38,5.4834]
[1753859350080,2.99,182.41,182.39,2.98]
[1753859350275,5.4823,182.42,182.39,2.98]
[1753859350475,2.99,182.4,182.39,2.98]
[1753859351280,2.6757447,182.44,182.38,5.4834]
[1753859351476,2.99,182.43,182.39,2.98]
[1753859351982,2.99,182.42,182.39,8.4632]
[1753859352187,2.99,182.41,182.4,2.98]
[1753859353891,2.99,182.44,182.41,2.98]
[1753859354283,8.4717,182.44,182.41,2.98]
[1753859354483,2.99,182.44,182.41,2.98]
[1753859354977,2.6757447,182.46,182.38,2.6757447]
[1753859355177,2.99,182.43,182.42,2.98]
[1753859355480,2.99,182.43,182.41,5.4825]
[1753859355687,2.99,182.4,182.38,2.98]
[1753859355888,2.99,182.4,182.39,2.98]
[1753859356688,2.99,182.4,182.35,2.6757447]
[1753859356892,5.6657447,182.4,182.34,2.98]
[1753859357083,2.99,182.39,182.32,116.76]
[1753859357282,2.99,182.39,182.35,2.98]
[1753859357283,5.4839,182.37,182.35,2.98]
[1753859357480,2.99,182.36,182.35,2.98]
[1753859357889,2.99,182.35,182.34,2.98]
[1753859359289,2.6757447,182.4,182.35,2.98]
[1753859359290,2.99,182.36,182.35,2.98]
[1753859360686,2.99,182.38,182.33,2.6757447]
[1753859360880,2.99,182.4,182.34,2.98]
[1753859361379,2.6757447,182.44,182.38,3.2]
[1753859361585,3.03,182.42,182.38,3.2]
[1753859361789,3.03,182.45,182.38,3.2]
[1753859362484,3.03,182.43,182.38,3.2]
[1753859362686,3.03,182.43,182.34,2.6757447]
[1753859362884,5.4831,182.4,182.36,3.2]
[1753859363091,3.03,182.39,182.33,3.2]
[1753859363484,5.4838,182.37,182.34,5.4846]
[1753859363689,3.03,182.35,182.34,3.2]
[1753859363889,3.03,182.35,182.32,5.8757447]
[1753859364090,3.03,182.34,182.32,8.6853]
[1753859364287,3.03,182.33,182.32,8.6853]
[1753859365594,3.03,182.33,182.31,5.4855]
[1753859365794,3.03,182.32,182.31,8.6855]
[1753859366593,3.03,182.34,182.32,5.4851]
[1753859366794,3.03,182.33,182.32,8.6851]
[1753859367793,2.6757447,182.38,182.31,5.4855]
[1753859367998,3.03,182.32,182.31,5.4855]
[1753859368688,3.03,182.32,182.3,493.7458]
[1753859369191,3.03,182.32,182.3,125.4658]
[1753859369497,3.03,182.31,182.3,125.4658]
[1753859369700,3.03,182.31,182.3,116.78]
[1753859370196,3.03,182.31,182.27,3.2]
[1753859370797,3.03,182.29,182.27,3.2]
[1753859370998,3.03,182.28,182.27,3.2]
[1753859371198,3.03,182.28,182.26,122.3071]
[1753859371399,3.03,182.27,182.26,120.02]
[1753859371605,2.6757447,182.32,182.26,116.82]
[1753859371894,3.03,182.31,182.28,5.4864]
[1753859372097,3.03,182.33,182.29,3.2]
[1753859372290,3.03,182.33,182.28,3.2]
[1753859372491,2.6757447,182.43,182.26,116.82]
[1753859372492,3.03,182.31,182.26,116.82]
[1753859373092,8.5158,182.31,182.27,5.4868]
[1753859373294,3.03,182.3,182.27,8.6868]
[1753859373795,3.03,182.29,182.28,8.6865]
[1753859374000,5.4854,182.32,182.28,8.6865]
[1753859374302,3.03,182.3,182.29,3.2]
[1753859374495,3.03,182.3,182.28,5.4865]
[1753859374694,3.03,182.29,182.28,3.2]
[1753859375605,3.03,182.29,182.28,8.6865]
[1753859375900,3.03,182.32,182.29,3.2]
[1753859376102,3.03,182.32,182.29,5.486]
[1753859376303,3.03,182.31,182.3,3.2]
[1753859376802,3.03,182.31,182.29,5.486]
[1753859377004,3.03,182.3,182.29,8.686]
[1753859378005,3.03,182.34,182.31,8.6855]
[1753859378202,3.03,182.36,182.29,3.2]
[1753859378400,2.6757447,182.35,182.28,3.2]
[1753859378602,3.03,182.34,182.28,3.2]
[1753859379300,3.03,182.32,182.3,5.4859]
[1753859380404,3.03,182.32,182.28,3.2]
[1753859381407,3.03,182.34,182.26,119.4957447]
[1753859381608,3.03,182.34,182.26,122.6957447]
[1753859381907,3.03,182.3,182.27,8.6866]
[1753859382105,3.03,182.29,182.28,3.2]
[1753859382502,3.03,182.29,182.26,119.4957447]
[1753859382706,3.03,182.29,182.26,120.02]
[1753859383011,3.03,182.29,182.26,125.5069]
[1753859383803,2.6757447,182.33,182.26,122.3069]
[1753859384004,3.03,182.32,182.27,3.2]
[1753859384205,3.03,182.32,182.27,5.4867]
[1753859384405,3.03,182.32,182.27,8.6867]
[1753859385410,3.03,182.29,182.27,8.6867]
[1753859385708,3.03,182.27,182.26,125.507]
[1753859386708,5.486,182.3,182.27,5.4867]
[1753859386908,5.4858,182.31,182.27,8.6867]
[1753859387109,3.03,182.32,182.28,3.2]
[1753859387406,5.4861,182.3,182.28,3.2]
[1753859387615,3.03,182.29,182.27,5.4867]
[1753859387806,3.03,182.28,182.27,8.6867]
[1753859389109,3.03,182.32,182.28,3.2]
[1753859389312,3.03,182.34,182.28,2.6757447]
[1753859389512,8.5155,182.32,182.29,8.686]
[1753859389712,5.4855,182.32,182.29,8.686]
[1753859389913,3.03,182.3,182.29,8.686]
[1753859390816,3.03,182.32,182.3,5.4858]
[1753859391009,3.03,182.32,182.31,3.2]
[1753859391813,3.03,182.32,182.29,8.6961]
[1753859392004,3.0,182.31,182.3,3.21]
[1753859392718,3.0,182.31,182.29,3.21]
[1753859393113,3.0,182.31,182.29,116.82]
[1753859393418,3.0,182.3,182.29,116.82]
[1753859396922,8.4859,182.3,182.29,116.82]
[1753859397317,3.0,182.3,182.26,116.78]
[1753859397518,2.6757447,182.27,182.19,3.21]
[1753859397724,3.0,182.21,182.2,120.07]
[1753859397919,3.0,182.2,182.17,3.21]
[1753859398114,3.0,182.2,182.19,3.21]
[1753859398823,3.0,182.22,182.18,116.86]
[1753859399023,3.0,182.22,182.21,3.21]
[1753859399425,8.4883,182.22,182.21,3.21]
[1753859399823,3.0,182.22,182.21,3.21]
[1753859400026,3.0,182.24,182.21,3.21]
[1753859400724,3.0,182.24,182.23,3.21]
[1753859401325,3.0,182.33,182.23,3.21]
[1753859401629,2.6757447,182.32,182.24,2.6757447]
[1753859401822,3.0,182.28,182.26,3.21]
[1753859402126,3.0,182.28,182.23,3.21]
[1753859402328,3.0,182.26,182.24,3.21]
[1753859402528,2.6757447,182.3,182.24,3.21]
[1753859402724,8.486,182.3,182.24,5.8857447]
[1753859402928,3.0,182.29,182.25,3.21]
[1753859403323,8.4863,182.29,182.25,8.6972]
[1753859403528,3.0,182.28,182.25,8.6972]
[1753859403822,5.4863,182.29,182.25,5.4872]
[1753859404025,3.0,182.27,182.26,8.697]
[1753859404425,5.4863,182.29,182.24,116.96]
[1753859404426,5.4863,182.29,182.25,5.4873]
[1753859404623,3.0,182.27,182.25,5.4873]
[1753859404928,3.0,182.27,182.2,3.21]
[1753859405127,3.0,182.24,182.21,116.96]
[1753859405325,3.0,182.24,182.17,11.87718832]
[1753859405326,2.6757447,182.22,182.17,3.21]
[1753859405829,3.0,182.2,182.17,3.21]
[1753859406032,3.0,182.2,182.18,3.21]
[1753859406226,3.0,182.2,182.19,8.6992]
[1753859406431,3.0,182.2,182.19,3.21]
[1753859406631,3.0,182.19,182.17,3.21]
[1753859406828,3.0,182.18,182.15,3.21]
[1753859407334,8.4896,182.18,182.15,8.7002]
[1753859407534,3.0,182.17,182.14,117.04]
[1753859407935,5.4903,182.16,182.14,117.04]
[1753859408127,3.0,182.15,182.14,117.04]
[1753859408332,3.0,182.15,182.11,3.21]
[1753859408528,3.0,182.15,182.1,2.6757447]
[1753859408529,3.0,182.14,182.12,3.21]
[1753859408730,3.0,182.13,182.1,5.8857447]
[1753859408931,3.0,182.12,182.11,3.21]
[1753859409136,3.0,182.12,182.09,117.08]
[1753859409334,3.0,182.11,182.09,117.08]
[1753859409735,3.0,182.1,182.09,120.29]
[1753859409931,3.0,182.1,182.09,3.21]
[1753859410334,3.0,182.09,182.08,117.08]
[1753859410638,3.0,182.09,182.07,120.33]
[1753859411038,3.0,182.09,182.07,125.8225]
[1753859411233,3.0,182.08,182.07,125.8225]
[1753859411633,3.0,182.1,182.05,3.21]
[1753859411933,3.0,182.12,182.06,3.21]
[1753859413140,3.0,182.11,182.06,3.21]
[1753859413342,3.0,182.11,182.07,3.21]
[1753859413736,5.492,182.1,182.07,3.21]
[1753859413937,3.0,182.08,182.07,3.21]
[1753859414438,3.0,182.07,182.05,117.1]
[1753859414837,2.6757447,182.11,182.05,120.31]
[1753859414838,3.0,182.1,182.05,120.31]
[1753859415036,3.0,182.1,182.05,117.1]
[1753859415238,2.6757447,182.09,182.02,4.16596517]
[1753859415436,3.0,182.08,182.02,3.21]
[1753859416037,3.0,182.08,182.0,374.7457447]
[1753859416238,3.0,182.04,182.01,117.18]
[1753859416643,8.4938,182.04,182.01,117.18]
[1753859416947,3.0,182.02,182.01,117.18]
[1753859417941,3.0,182.02,181.98,120.43]
[1753859418342,3.0,182.02,181.98,117.22]
[1753859418538,3.0,182.0,181.93,2.6757447]
[1753859418740,3.0,182.0,181.94,120.43]
[1753859418944,3.0,181.98,181.94,8.7067]
[1753859419140,3.0,181.98,181.9,370.01656954]
[1753859419141,2.6757447,181.97,181.9,370.01656954]
[1753859419442,3.0,181.93,181.89,122.7782]
[1753859419644,3.0,181.92,181.84,3.21]
[1753859419845,3.0,181.9,181.84,117.36]
[1753859420045,3.0,181.89,181.84,117.36]
[1753859420239,3.0,181.89,181.88,3.21]
[1753859420444,3.0,181.92,181.85,3.21]
[1753859420644,2.6757447,181.91,181.85,3.21]
[1753859420847,3.0,181.88,181.82,120.73]
[1753859421148,3.0,181.88,181.82,3.21]
[1753859421546,3.0,181.88,181.83,3.17]
[1753859421850,3.17,181.9,181.83,3.17]
[1753859422148,4.3924119,181.92,181.84,117.92]
[1753859422447,3.17,181.91,181.85,3.17]
[1753859422946,5.4981,181.9,181.85,3.17]
[1753859423148,3.17,181.89,181.84,117.92]
[1753859423346,3.17,181.89,181.81,3.17]
[1753859423547,3.17,181.85,181.79,121.13]
[1753859423743,3.17,181.84,181.79,117.96]
[1753859424051,3.17,181.83,181.82,3.17]
[1753859424348,5.4993,181.86,181.78,478.52953326]
[1753859424349,3.17,181.81,181.78,478.52953326]
[1753859424645,3.17,181.83,181.75,121.21]
[1753859424854,3.17,181.81,181.75,3.17]
[1753859425151,3.17,181.82,181.8,8.6707]
[1753859425652,3.17,181.82,181.76,4.3924119]
[1753859425653,3.17,181.8,181.75,121.23]
[1753859425857,3.17,181.8,181.75,121.21]
[1753859426249,4.3924119,181.81,181.76,3.17]
[1753859426449,4.3924119,181.81,181.75,118.04]
[1753859426450,3.17,181.79,181.77,3.17]
[1753859426645,4.3924119,181.81,181.75,121.21]
[1753859426850,3.17,181.78,181.75,118.04]
[1753859427048,3.17,181.8,181.75,118.04]
[1753859427249,3.17,181.78,181.75,118.04]
[1753859427453,3.17,181.76,181.71,3.17]
[1753859428050,3.17,181.74,181.66,4.3924119]
[1753859428249,3.17,181.74,181.67,121.37]
[1753859428445,3.17,181.74,181.68,3.17]
[1753859429360,3.17,181.78,181.69,4.3924119]
[1753859429560,3.17,181.78,181.7,3.17]
[1753859429853,8.6725,181.75,181.7,121.77]
[1753859430051,8.6725,181.75,181.65,4.3924119]
[1753859430052,3.17,181.74,181.68,3.17]
[1753859430256,3.17,181.74,181.69,3.17]
[1753859430451,3.17,181.72,181.69,3.17]
[1753859430648,3.17,181.72,181.68,124.1244]
[1753859430852,3.17,181.72,181.68,118.62]
[1753859431055,3.17,181.71,181.69,3.17]
[1753859431455,4.3924119,181.77,181.69,3.17]
[1753859431656,3.17,181.76,181.69,3.17]
[1753859431956,3.17,181.78,181.71,3.17]
[1753859432455,4.3924119,181.81,181.74,3.17]
[1753859432761,3.17,181.77,181.74,3.17]
[1753859432952,3.17,181.77,181.75,3.17]
[1753859433352,3.17,181.8,181.72,121.91]
[1753859433851,3.17,181.75,181.71,118.8]
[1753859434152,3.17,181.78,181.7,3.17]
[1753859434457,3.17,181.78,181.69,123.2124119]
[1753859434458,3.17,181.75,181.72,8.6731]
[1753859434653,3.17,181.73,181.72,3.17]
[1753859434953,4.3924119,181.79,181.7,3.17]
[1753859435160,3.17,181.78,181.7,3.17]
[1753859435656,5.5019,181.77,181.73,8.6729]
[1753859435848,3.17,181.75,181.73,8.6729]
[1753859436053,3.17,181.74,181.72,5.5033]
[1753859436354,5.5023,181.76,181.72,5.5033]
[1753859436556,3.17,181.73,181.72,5.5033]
[1753859437454,3.17,181.73,181.7,3.17]
[1753859437455,3.17,181.74,181.71,3.17]
[1753859437656,3.17,181.75,181.7,3.17]
[1753859437855,4.3924119,181.77,181.7,3.17]
[1753859437856,4.3924119,181.77,181.72,5.5034]
[1753859438052,4.3924119,181.77,181.7,3.17]
[1753859438361,3.17,181.76,181.7,3.17]
[1753859439156,3.17,181.76,181.69,118.8]
[1753859439360,3.17,181.72,181.69,8.6742]
[1753859439561,3.17,181.7,181.69,8.6742]
[1753859439761,3.17,181.72,181.7,3.17]
[1753859440060,3.17,181.76,181.69,3.17]
[1753859440258,3.17,181.76,181.73,5.503]
[1753859440559,3.17,181.75,181.73,3.17]
[1753859440865,3.17,181.78,181.77,5.5019]
[1753859441259,3.17,181.78,181.75,3.17]
[1753859441455,3.17,181.77,181.75,3.17]
[1753859442264,3.17,181.77,181.76,5.5021]
[1753859443060,3.17,181.78,181.72,3.17]
[1753859443665,4.3924119,181.82,181.71,4.3924119]
[1753859443873,3.17,181.81,181.72,3.17]
[1753859444858,3.17,181.81,181.77,5.5016]
[1753859445065,3.17,181.81,181.75,3.17]
[1753859446176,3.17,181.81,181.78,5.5016]
[1753859446360,8.6707,181.81,181.75,3.17]
[1753859446666,4.3924119,181.84,181.77,3.17]
[1753859446865,3.17,181.87,181.77,7.5624119]
[1753859447068,3.17,181.87,181.82,5.5002]
[1753859447269,3.17,181.87,181.8,3.17]
[1753859447564,3.17,181.87,181.82,3.17]
[1753859447768,4.3924119,181.91,181.82,3.17]
[1753859447962,3.17,181.88,181.84,3.17]
[1753859448460,3.17,181.88,181.87,5.4988]
[1753859448861,3.17,181.92,181.85,3.17]
[1753859449057,3.17,181.89,181.85,8.6693]
[1753859449465,3.17,181.89,181.83,4.3924119]
[1753859449466,3.17,181.89,181.83,3.17]
[1753859449661,3.17,181.87,181.84,3.17]
[1753859449868,3.17,181.86,181.84,3.17]
[1753859450368,3.17,181.88,181.86,3.17]
[1753859450768,3.17,181.88,181.86,8.6689]
[1753859450968,3.17,181.92,181.86,3.17]
[1753859452370,3.17,181.92,181.86,8.6691]
[1753859452565,4.3924119,181.93,181.83,4.3924119]
[1753859452566,4.3924119,181.95,181.84,2.97]
[1753859452873,3.22,181.93,181.89,2.97]
[1753859453075,3.22,181.93,181.92,5.4973]
[1753859453668,3.22,181.95,181.91,4.3924119]
[1753859453876,4.3924119,182.01,181.94,2.97]
[1753859454067,3.22,181.97,181.95,2.97]
[1753859454265,3.22,181.96,181.95,2.97]
[1753859454574,4.3924119,182.03,181.94,8.4665]
[1753859454769,3.22,181.95,181.94,8.4665]
[1753859454971,3.22,181.95,181.94,2.97]
[1753859455273,3.22,181.95,181.93,9.8894119]
[1753859455274,3.22,181.95,181.93,8.467]
[1753859456074,3.22,181.96,181.94,8.4667]
[1753859456276,3.96790576,181.95,181.94,8.4667]